[Event "50th La Roda Open 2024"]
[Site "La Roda"]
[Date "2024.03.31"]
[Round "8.16"]
[White "Santos, Antonio P"]
[Black "Iglesias Ferreira, Andres"]
[Result "0-1"]
[ECO "E04"]
[WhiteElo "2165"]
[BlackElo "2234"]
[Annotator "RC"]
[PlyCount "100"]
[EventDate "2024.03.27"]
[EventType "swiss"]
[EventCountry "ESP"]
[SourceTitle "playchess.com"]
[Source "ChessBase"]
[SourceQuality "1"]
[TimeControl "5400+30"]

1. d4 {[%emt 0:03:16]} Nf6 {[%emt 0:03:31]} 2. c4 {[%emt 0:00:09]} e6 {[%emt 0:00:10]} 3. g3 {[%emt 0:00:09]} d5 {[%emt 0:01:08]} 4. Bg2 {[%emt 0:00:12]} dxc4 {[%emt 0:02:03]} 5. Nf3 {[%emt 0:00:11]} Bb4+ {[%emt 0:02:12]} 6. Nbd2 {[%emt 0:00:13]} a5 {[%emt 0:03:28]} 7. O-O {[%emt 0:00:11]} b5 {[%emt 0:01:33]} 8. a4 {[%emt 0:26:11]} c6 {[%emt 0:00:58]} 9. Qc2 {[%emt 0:00:10]} O-O {[%emt 0:01:04]} 10. e4 {[%emt 0:00:26]} h6 {[%emt 0:04:01]} 11. b3 {[%emt 0:06:42]} cxb3 {[%emt 0:06:10]} 12. Nxb3 {[%emt 0:00:02]} Be7 {[%emt 0:07:38]} 13. Rd1 {[%emt 0:04:52]} Bd7 {[%emt 0:00:23]} 14. Bd2 {[%emt 0:01:56]} b4 {[%emt 0:06:56]} 15. Ne5 {[%emt 0:01:09]} Qc7 {[%emt 0:04:19]} 16. Nc4 {[%emt 0:11:18]} Rc8 {[%emt 0:00:34]} 17. Bf4 {[%emt 0:00:26]} Qd8 {[%emt 0:00:27]} 18. Nc5 {[%emt 0:00:36]} Ra7 {[%emt 0:03:48]} 19. Qe2 {[%emt 0:04:55]} Be8 {[%emt 0:02:48]} 20. g4 {[%emt 0:24:21]} Nbd7 {[%emt 0:00:37]} 21. h4 {[%emt 0:00:12]} Nh7 {[%emt 0:01:15]} 22. h5 {[%emt 0:00:41]} Nb6 {[%emt 0:01:45]} 23. Ne5 {[%emt 0:01:26]} Bd6 {[%emt 0:01:16]} 24. Bg3 {[%emt 0:00:31]} Qe7 {[%emt 0:00:23]} 25. f4 {[%emt 0:04:37]} Nf8 {[%emt 0:08:30]} 26. Nc4 {[%emt 0:02:41]} Bc7 {[%emt 0:09:18]} 27. Nd2 {[%emt 0:00:37]} Nbd7 {[%emt 0:01:34]} 28. Ndb3 {[%emt 0:00:02]} Nxc5 {[%emt 0:00:41]} 29. dxc5 {[%emt 0:01:09]} e5 {[%emt 0:02:25]} 30. f5 {[%emt 0:00:01]} f6 {[%emt 0:00:18]} 31. Bf2 {[%emt 0:00:29]} Bf7 {[%emt 0:24:47]} 32. Nd2 {[%emt 0:00:08]} Raa8 {[%emt 0:00:00]} 33. Nc4 {[%emt 0:00:15]} Rd8 {[%emt 0:00:00]} 34. Bf1 {[%emt 0:01:31]} Nh7 {[%emt 0:00:00]} 35. Qc2 {[%emt 0:00:36]} Ng5 {[%emt 0:00:00]} 36. Kg2 {[%emt 0:00:07]} Nxe4 {[%emt 0:00:00]} 37. Qxe4 {[%emt 0:00:26]} Bd5 {[%emt 0:00:00]} 38. Rxd5 {[%emt 0:00:10]} cxd5 {[%emt 0:00:00]} 39. Qc2 {[%emt 0:01:55]} dxc4 {[%emt 0:00:00]} 40. Bxc4+ {[%emt 0:00:02]} Kh8 {[%emt 0:00:00]} 41. Qe4 {[%emt 0:00:02]} Rab8 {[%emt 0:00:00]} 42. Bb3 {[%emt 0:00:02]} Rd2 {[%emt 0:00:00]} 43. Rc1 {[%emt 0:01:48]} Rbd8 {[%emt 0:00:00]} 44. Kg1 {[%emt 0:00:19]} Qd7 {[%emt 0:00:00]} 45. Rf1 {[%emt 0:03:20]} Qd3 {[%emt 0:00:00]} 46. Qc6 {[%emt 0:00:18]} Qxb3 {[%emt 0:00:00]} 47. Qxc7 {[%emt 0:00:02]} Rd1 {[%emt 0:00:00]} 48. Qxa5 {[%emt 0:00:21]} Rxf1+ {[%emt 0:00:00]} 49. Kxf1 {[%emt 0:00:02]} Qh3+ {[%emt 0:00:00]} 50. Ke1 {[%emt 0:00:21]} Qh1+ {[%emt 0:00:00]} 0-1

[Event "50th La Roda Open 2024"]
[Site "La Roda"]
[Date "2024.03.31"]
[Round "9.1"]
[White "Albornoz Cabrera, Carlos Daniel"]
[Black "Aravindh, Chithambaram VR."]
[Result "1/2-1/2"]
[ECO "C72"]
[WhiteElo "2603"]
[BlackElo "2662"]
[Annotator "TA"]
[PlyCount "55"]
[EventDate "2024.03.27"]
[EventType "swiss"]
[EventCountry "ESP"]
[SourceTitle "playchess.com"]
[Source "ChessBase"]
[SourceQuality "1"]
[TimeControl "5400+30"]

{[%evp 12,55,36,49,47,42,38,41,45,29,35,14,20,16,65,75,56,58,70,72,79,62,72,63,47,49,57,28,23,0,0,0,0,0,0,0,0,0,0,-59,-66,-60,-71,-59,-53,-40]} 1. e4 {[%emt 0:00:30]} e5 {[%emt 0:00:07]} 2. Nf3 {[%emt 0:00:00]} Nc6 {[%emt 0:00:11]} 3. Bb5 {[%emt 0:00:00][%cal Bf1b5,Bb5a4,Ba4c2,Bc2b3,Bb3f7][%mdl 32]} a6 {[%emt 0:00:14]} 4. Ba4 {[%emt 0:00:00]} d6 {[%emt 0:00:10]} 5. O-O {[%emt 0:00:03]} Bg4 {[%emt 0:00:20]} 6. h3 {[%emt 0:00:42]} Bh5 {[%emt 0:00:08]} 7. c3 {[%emt 0:01:02]} Be7 {[%emt 0:00:35][%cal Bf8e7,Be7f6,Bf6d4][%mdl 32]} 8. d4 {[%emt 0:00:59]} b5 {[%emt 0:00:07]} 9. Bc2 {[%emt 0:03:25]} Bxf3 {[%emt 0:00:19] White is slightly better.} 10. Qxf3 {[%emt 0:00:05] Hoping for d5.} exd4 {[%emt 0:00:06]} 11. Rd1 {[%emt 0:03:41]} Bf6 {[%emt 0:00:12]} 12. Bb3 {[%emt 0:01:13]} Nge7 {[%emt 0:00:08]} (12... Qd7 $11) 13. cxd4 $14 {[%emt 0:00:06] White is more active.} Nxd4 {[%emt 0:00:18] [#]} 14. Rxd4 {[%emt 0:00:08]} Bxd4 {[%emt 0:00:06]} 15. Bxf7+ {[%emt 0:00:22]} Kd7 {[%emt 0:01:06][%cal Be8d7,Bd7c6,Bc6b6,Bb6b7][%mdl 32]} 16. Qg4+ {[%emt 0:00:04]} Kc6 {[%emt 0:00:04] [#]} 17. Bd5+ $1 {[%emt 0:00:03]} Kb6 {[%emt 0:03:54] aiming for ...Nxd5.} 18. Bxa8 {[%emt 0:00:35]} Qxa8 {[%emt 0:09:53]} 19. Nc3 {[%emt 0:03:55]} Kb7 {[%emt 0:20:43]} 20. Be3 {[%emt 0:05:33]} (20. e5 {is more complex.} dxe5 21. Be3 Rd8 22. a4) 20... Bxe3 {[%emt 0:17:59]} 21. fxe3 {[%emt 0:00:10]} Ng6 {[%emt 0:00:12]} 22. a4 {[%emt 0:14:15]} b4 {[%emt 0:07:50]} 23. Nd5 {[%emt 0:00:58][%cal Oa1c1] Rc1! is the strong threat.} Qc8 $1 {[%emt 0:02:56] ...Qxg4 would now be deadly.} 24. Rc1 {[%emt 0:26:59]} (24. Nxb4 Qxg4 25. hxg4 Re8 $19) 24... c5 {[%emt 0:00:58] Threatens to win with ...Qxg4.} 25. Rf1 {[%emt 0:00:03]} (25. Qg3 $11 Qd7 26. a5) 25... Qxg4 $1 $15 {[%emt 0:01:16]} 26. Rf7+ {[%emt 0:00:04]} Kb8 {[%emt 0:00:08]} 27. hxg4 {[%emt 0:00:02]} Ne5 $1 {[%emt 0:02:42]} 28. Rxg7 {[%emt 0:00:50] Weighted Error Value: White=0.08 (flawless) /Black=0.03 (flawless) .  Mistake:       	White=1     	Black=1      Inaccurate:     	White=1     	---        OK:         	White=5     	Black=7      Best:        	White=4     	Black=5      Strong:       	---       	Black=3      Brilliant:      	White=1     	---} 1/2-1/2

[Event "50th La Roda Open 2024"]
[Site "La Roda"]
[Date "2024.03.31"]
[Round "9.2"]
[White "Karthik Venkataraman"]
[Black "Siddharth, Jagadeesh"]
[Result "1/2-1/2"]
[ECO "C02"]
[WhiteElo "2609"]
[BlackElo "2490"]
[Annotator "TA"]
[PlyCount "80"]
[EventDate "2024.03.27"]
[EventType "swiss"]
[EventCountry "ESP"]
[SourceTitle "playchess.com"]
[Source "ChessBase"]
[SourceQuality "1"]
[TimeControl "5400+30"]

{[%evp 16,80,15,18,42,41,37,39,37,32,30,33,40,38,36,37,39,25,29,29,34,32,34,25,20,0,29,22,29,0,4,0,26,0,16,4,15,7,37,22,52,9,32,7,17,8,12,16,12,22,15,0,25,0,0,0,0,0,0,0,0,0,0,0,0,0,0]} 1. e4 {[%emt 0:01:29]} e6 {[%emt 0:00:09]} 2. d4 {[%emt 0:00:05]} d5 {[%emt 0:00:11]} 3. e5 {[%emt 0:00:05]} c5 {[%emt 0:00:05]} 4. c3 {[%emt 0:00:04]} Nc6 {[%emt 0:00:11]} 5. Nf3 {[%emt 0:00:04]} Nge7 {[%emt 0:00:07]} 6. Na3 {[%emt 0:00:06]} cxd4 {[%emt 0:01:35]} 7. cxd4 {[%emt 0:00:10]} Nf5 {[%emt 0:00:05]} 8. Nc2 {[%emt 0:00:21]} Bd7 {[%emt 0:00:05]} 9. Bd3 {[%emt 0:01:26]} Nb4 {[%emt 0:01:29]} 10. Nxb4 {[%emt 0:12:38] [#] And now Nc2 would win.} Bxb4+ {[%emt 0:00:10]} 11. Bd2 {[%emt 0:00:05]} Qb6 {[%emt 0:00:59] White is slightly better.} 12. Bxb4 {[%emt 0:00:06]} Qxb4+ {[%emt 0:00:07]} 13. Qd2 {[%emt 0:00:03]} Qxd2+ {[%emt 0:03:47]} 14. Kxd2 {[%emt 0:00:11]} Ne7 {[%emt 0:00:28]} 15. Rac1 {[%emt 0:07:04]} Nc6 {[%emt 0:01:11]} 16. h4 {[%emt 0:03:22]} Ke7 {[%emt 0:02:55]} 17. Rh3 {[%emt 0:03:34]} h6 {[%emt 0:00:17]} 18. Rg3 {[%emt 0:00:21]} Rhg8 {[%emt 0:00:05]} 19. Bh7 {[%emt 0:02:03]} Rh8 {[%emt 0:00:04]} 20. Bd3 {[%emt 0:00:04]} (20. Rxg7 Kf8 21. Rg4 Rxh7 $17) 20... Rhg8 {[%emt 0:00:04]} 21. Rc3 {[%emt 0:00:21]} Rac8 {[%emt 0:05:06]} 22. Bh7 {[%emt 0:01:53]} Rh8 {[%emt 0:00:02]} 23. Bd3 {[%emt 0:00:06]} (23. Rxg7 $2 {loses.} Kf8 24. Rg4 Rxh7 $19) 23... Rhg8 {[%emt 0:00:02]} 24. Bh7 {[%emt 0:07:09]} Rh8 {[%emt 0:00:02]} 25. Bb1 {[%emt 0:00:04]} (25. Rxg7 $2 {too greedy.} Kf8 26. Rg4 Rxh7 $19) 25... Rhg8 {[%emt 0:00:09]} 26. Bd3 {[%emt 0:00:04]} Rc7 {[%emt 0:05:34]} 27. Ke3 {[%emt 0:00:11]} h5 {[%emt 0:05:29]} 28. Ng1 {[%emt 0:04:50]} g6 {[%emt 0:01:02]} 29. Ne2 {[%emt 0:00:18]} Rgc8 {[%emt 0:00:06]} 30. Kd2 {[%emt 0:01:36]} Nb4 {[%emt 0:05:09]} 31. Bb1 {[%emt 0:00:44]} (31. Rxc7 {simplifies} Rxc7 32. a3 Nc6 33. b4) 31... Bb5 {[%emt 0:01:50]} 32. Rxc7+ {[%emt 0:10:56]} Rxc7 {[%emt 0:00:13]} 33. Ng1 {[%emt 0:00:05]} Bf1 {[%emt 0:06:30]} 34. Nf3 {[%emt 0:03:20]} Nc6 {[%emt 0:00:18] The position is equal.} 35. Nh2 {[%emt 0:00:46]} Ba6 {[%emt 0:00:03]} 36. Rc3 {[%emt 0:00:06]} Rd7 {[%emt 0:00:05]} 37. Nf3 {[%emt 0:06:52]} Bf1 {[%emt 0:00:34]} 38. g3 {[%emt 0:00:08]} Bg2 {[%emt 0:00:13]} 39. Ne1 {[%emt 0:00:08]} Be4 {[%emt 0:00:13]} 40. Bxe4 {[%emt 0:00:05]} dxe4 {[%emt 0:00:10] Weighted Error Value: White=0.07 (flawless) /Black=0.06 (flawless) .  Inaccurate:     	White=1     	Black=2      OK:         	White=12    	Black=13     Best:        	White=3     	Black=1} 1/2-1/2

[Event "50th La Roda Open 2024"]
[Site "La Roda"]
[Date "2024.03.31"]
[Round "9.3"]
[White "Xu, Xiangyu"]
[Black "Pranav Vijay"]
[Result "1/2-1/2"]
[ECO "E11"]
[WhiteElo "2623"]
[BlackElo "2252"]
[Annotator "RC"]
[PlyCount "139"]
[EventDate "2024.03.27"]
[EventType "swiss"]
[EventCountry "ESP"]
[SourceTitle "playchess.com"]
[Source "ChessBase"]
[SourceQuality "1"]
[TimeControl "5400+30"]

1. d4 {[%emt 0:01:07]} Nf6 {[%emt 0:03:16]} 2. c4 {[%emt 0:00:04]} e6 {[%emt 0:00:08]} 3. g3 {[%emt 0:00:06]} Bb4+ {[%emt 0:01:16]} 4. Nd2 {[%emt 0:00:09]} O-O {[%emt 0:04:08]} 5. Bg2 {[%emt 0:00:11]} d6 {[%emt 0:01:35]} 6. Ngf3 {[%emt 0:00:29]} Nc6 {[%emt 0:01:27]} 7. O-O {[%emt 0:00:33]} Bxd2 {[%emt 0:01:52]} 8. Bxd2 {[%emt 0:00:13]} e5 {[%emt 0:00:25]} 9. dxe5 {[%emt 0:08:14]} dxe5 {[%emt 0:00:29]} 10. Bc3 {[%emt 0:00:14]} Qe7 {[%emt 0:00:47]} 11. Qc2 {[%emt 0:00:11]} Bg4 {[%emt 0:04:57]} 12. e3 {[%emt 0:03:03]} Qe6 {[%emt 0:05:57]} 13. b3 {[%emt 0:01:44]} h6 {[%emt 0:02:24]} 14. Nh4 {[%emt 0:01:58]} Bh3 {[%emt 0:04:44]} 15. Bxh3 {[%emt 0:00:51]} Qxh3 {[%emt 0:00:08]} 16. f3 {[%emt 0:00:08]} Rad8 {[%emt 0:05:51]} 17. Rad1 {[%emt 0:00:30]} Qe6 {[%emt 0:00:34]} 18. Kh1 {[%emt 0:14:38]} Rfe8 {[%emt 0:04:55]} 19. e4 {[%emt 0:02:21]} Nd4 {[%emt 0:04:21]} 20. Qf2 {[%emt 0:00:16]} c5 {[%emt 0:03:37]} 21. Ng2 {[%emt 0:00:29]} a6 {[%emt 0:02:06]} 22. Ne3 {[%emt 0:00:27]} b5 {[%emt 0:04:50]} 23. Rfe1 {[%emt 0:08:26]} Qc6 {[%emt 0:06:06]} 24. Qf1 {[%emt 0:00:23]} Rb8 {[%emt 0:08:39]} 25. Rd2 {[%emt 0:21:13]} Rb7 {[%emt 0:02:46]} 26. Rf2 {[%emt 0:00:41]} Re6 {[%emt 0:04:58]} 27. Rc1 {[%emt 0:03:18]} Qd7 {[%emt 0:01:53]} 28. Kg2 {[%emt 0:01:48]} b4 {[%emt 0:04:36]} 29. Bb2 {[%emt 0:00:08]} a5 {[%emt 0:00:08]} 30. Nd5 {[%emt 0:00:13]} a4 {[%emt 0:00:19]} 31. Qd3 {[%emt 0:00:16]} Qe8 {[%emt 0:01:39]} 32. f4 {[%emt 0:03:45]} axb3 {[%emt 0:02:35]} 33. axb3 {[%emt 0:00:07]} exf4 {[%emt 0:02:55]} 34. Bxd4 {[%emt 0:00:28]} Nxe4 {[%emt 0:02:06]} 35. Bb2 {[%emt 0:04:18]} Nxf2 {[%emt 0:00:12]} 36. Kxf2 {[%emt 0:00:04]} fxg3+ {[%emt 0:00:10]} 37. hxg3 {[%emt 0:00:13]} Ra7 {[%emt 0:02:01]} 38. Rc2 {[%emt 0:01:46]} Re4 {[%emt 0:01:28]} 39. Kg2 {[%emt 0:03:07]} Rd7 {[%emt 0:02:45]} 40. Rf2 {[%emt 0:01:49]} Re1 {[%emt 0:00:45]} 41. Rf1 {[%emt 0:07:57]} Rd6 {[%emt 0:01:08]} 42. Bc1 {[%emt 0:00:10]} Rxf1 {[%emt 0:00:34]} 43. Kxf1 {[%emt 0:00:15]} Qe6 {[%emt 0:00:58]} 44. Kg2 {[%emt 0:02:55]} Ra6 {[%emt 0:00:12]} 45. Be3 {[%emt 0:03:25]} Ra2+ {[%emt 0:00:20]} 46. Bf2 {[%emt 0:00:05]} Rb2 {[%emt 0:01:40]} 47. Qf3 {[%emt 0:00:07]} f5 {[%emt 0:01:04]} 48. Kf1 {[%emt 0:01:20]} Rb1+ {[%emt 0:01:29]} 49. Kg2 {[%emt 0:00:03]} Rb2 {[%emt 0:00:58]} 50. Kf1 {[%emt 0:00:11]} Rb1+ {[%emt 0:00:42]} 51. Kg2 {[%emt 0:00:03]} Kh8 {[%emt 0:00:35]} 52. Qd3 {[%emt 0:03:48]} Rb2 {[%emt 0:00:15]} 53. Kf1 {[%emt 0:00:03]} Qe5 {[%emt 0:00:44]} 54. Bxc5 {[%emt 0:00:12]} Ra2 {[%emt 0:00:30]} 55. Bd4 {[%emt 0:00:11]} Qd6 {[%emt 0:00:32]} 56. c5 {[%emt 0:03:07]} Qe6 {[%emt 0:00:24]} 57. Nxb4 {[%emt 0:00:04]} Ra3 {[%emt 0:00:05]} 58. Nd5 {[%emt 0:00:10]} Kh7 {[%emt 0:01:00]} 59. Bb2 {[%emt 0:00:23]} Ra2 {[%emt 0:00:19]} 60. Qd4 {[%emt 0:00:17]} Qg6 {[%emt 0:00:23]} 61. Qe5 {[%emt 0:01:35]} f4 {[%emt 0:00:16]} 62. Qxg7+ {[%emt 0:02:47]} Qxg7 {[%emt 0:00:01]} 63. Bxg7 {[%emt 0:00:04]} Kxg7 {[%emt 0:00:06]} 64. gxf4 {[%emt 0:01:24]} Rd2 {[%emt 0:01:32]} 65. Nc7 {[%emt 0:00:11]} Rd7 {[%emt 0:00:52]} 66. Nb5 {[%emt 0:00:09]} Rb7 {[%emt 0:00:18]} 67. Nd6 {[%emt 0:00:21]} Rxb3 {[%emt 0:00:36]} 68. c6 {[%emt 0:00:03]} Rf3+ {[%emt 0:00:35]} 69. Kg2 {[%emt 0:00:03]} Rxf4 {[%emt 0:00:11]} 70. c7 {[%emt 0:00:04]} 1/2-1/2

[Event "50th La Roda Open 2024"]
[Site "La Roda"]
[Date "2024.03.31"]
[Round "9.4"]
[White "Iturrizaga Bonelli, Eduardo"]
[Black "Cruz Lledo, Pablo"]
[Result "1-0"]
[ECO "A11"]
[WhiteElo "2588"]
[BlackElo "2353"]
[Annotator "TA"]
[PlyCount "63"]
[EventDate "2024.03.27"]
[EventType "swiss"]
[EventCountry "ESP"]
[SourceTitle "playchess.com"]
[Source "ChessBase"]
[SourceQuality "1"]
[TimeControl "5400+30"]

{[%evp 9,63,12,18,13,10,10,14,14,20,26,20,0,2,3,0,-2,0,-1,15,18,13,6,20,17,28,29,20,27,25,29,44,41,119,125,117,121,150,144,193,192,391,402,361,387,726,740,719,708,1029,987,974,473,467,442,592,495]} 1. c4 {[%emt 0:01:07]} c6 {[%emt 0:00:12]} 2. Nf3 {[%emt 0:01:43]} d5 {[%emt 0:00:09]} 3. e3 {[%emt 0:01:46]} Nf6 {[%emt 0:00:11]} 4. Nc3 {[%emt 0:00:06]} a6 {[%emt 0:00:05]} 5. b3 {[%emt 0:03:58]} Bf5 {[%emt 0:00:43]} 6. Be2 {[%emt 0:01:15]} h6 {[%emt 0:00:32]} 7. Ba3 {[%emt 0:00:46]} Nbd7 {[%emt 0:00:55]} 8. O-O {[%emt 0:01:23] The position is equal.} e5 {[%emt 0:08:41]} 9. Bxf8 {[%emt 0:00:32]} Kxf8 {[%emt 0:00:04]} 10. b4 {[%emt 0:16:30]} dxc4 {[%emt 0:05:56]} 11. Bxc4 {[%emt 0:00:43]} Qe7 {[%emt 0:00:15]} 12. a3 {[%emt 0:02:40]} Rd8 {[%emt 0:01:58]} 13. Be2 {[%emt 0:13:07]} g5 {[%emt 0:14:14]} 14. d3 {[%emt 0:03:18]} Kg7 {[%emt 0:00:38]} 15. Qc2 {[%emt 0:00:59]} Bg6 {[%emt 0:02:50]} 16. Qb2 {[%emt 0:02:17]} Rhe8 {[%emt 0:01:30]} 17. Rfd1 {[%emt 0:03:23]} Nb6 {[%emt 0:13:04]} 18. Rac1 {[%emt 0:04:31]} Nfd5 {[%emt 0:03:15][%cal Bf6d5,Bd5b6,Bb6c4][%mdl 32]} 19. Ne4 {[%emt 0:07:30]} Na4 {[%emt 0:13:54]} 20. Qb3 {[%emt 0:02:10]} Bxe4 {[%emt 0:00:12]} (20... Ndb6 $14) 21. dxe4 $16 {[%emt 0:00:06]} Ndb6 {[%emt 0:00:06] [#]} 22. Nd2 $1 {[%emt 0:00:16] White is more active.} Qe6 {[%emt 0:10:11][%cal Od8d2] aiming for ...Rxd2!} 23. Qc2 {[%emt 0:00:28]} Rc8 {[%emt 0:03:32]} (23... c5 $16) 24. h3 $18 {[%emt 0:11:36] Hoping for Bg4.} Rc7 $2 {[%emt 0:01:05]} (24... Qf6 {might work better.} 25. Bg4 Rc7) 25. Bc4 {[%emt 0:00:36]} Nxc4 {[%emt 0:04:01]} 26. Nxc4 {[%emt 0:00:31]} (26. Qxa4 Nb2 27. Qc2 (27. Qa5 $2 Rd7 $19) 27... Nxd1 28. Rxd1 c5 29. bxc5 b6 $17) 26... Rd7 {[%emt 0:00:59] [#] Dodges Nd6} (26... b5) 27. Rxd7 {[%emt 0:00:17] White is clearly winning.} ({Not} 27. Qxa4 b5 28. Qc2 (28. Qxa6 Rxd1+ 29. Rxd1 Qxc4 $18) 28... Rxd1+ 29. Qxd1 bxc4 $16) 27... Qxd7 {[%emt 0:00:07]} 28. Rd1 {[%emt 0:00:44]} Qe6 {[%emt 0:01:05]} 29. Nd6 {[%emt 0:02:03]} Nb6 {[%emt 0:00:15]} 30. Nxe8+ {[%emt 0:00:34]} (30. Nf5+ $142 Kg8 31. Rd6) 30... Qxe8 {[%emt 0:00:05]} 31. Qc5 {[%emt 0:00:18] Against Qe7} Nc8 {[%emt 0:00:21]} 32. a4 {[%emt 0:00:08] Weighted Error Value: White=0.18 (very precise) /Black=0.32.  Mistake:       	---       	Black=4      Inaccurate:     	---       	Black=1      OK:         	White=12    	Black=7      Best:        	White=2     	---        Strong:       	White=1     	---} 1-0

[Event "50th La Roda Open 2024"]
[Site "La Roda"]
[Date "2024.03.31"]
[Round "9.5"]
[White "Peralta, Fernando"]
[Black "Lopez Nunez, Alonso"]
[Result "1-0"]
[ECO "D06"]
[WhiteElo "2580"]
[BlackElo "1993"]
[Annotator "TA"]
[PlyCount "65"]
[EventDate "2024.03.27"]
[EventType "swiss"]
[EventCountry "ESP"]
[SourceTitle "playchess.com"]
[Source "ChessBase"]
[SourceQuality "1"]
[TimeControl "5400+30"]

{[%evp 9,65,38,39,27,37,24,43,36,46,44,58,28,34,34,72,58,107,107,115,111,122,115,145,135,125,106,97,108,150,160,160,175,195,185,440,440,420,403,408,371,588,592,629,632,771,773,1069,1032,1037,1033,1353,1308,1251,1158,1125,1110,1058,1085]} 1. d4 {[%emt 0:00:05]} d5 {[%emt 0:00:05]} 2. c4 {[%emt 0:00:15]} c5 {[%emt 0:00:19]} 3. cxd5 {[%emt 0:02:13]} Qxd5 {[%emt 0:00:08]} 4. Nf3 {[%emt 0:00:19]} cxd4 {[%emt 0:00:19]} 5. Nc3 {[%emt 0:00:10]} Qa5 {[%emt 0:00:04]} 6. Nxd4 {[%emt 0:00:07]} Nf6 {[%emt 0:01:07] Inhibits e4.} 7. Nb3 {[%emt 0:04:02]} Qh5 {[%emt 0:01:10]} 8. f3 {[%emt 0:03:31] White is slightly better.} e5 {[%emt 0:02:59]} 9. e4 {[%emt 0:01:16] Strongly threatening Nb5.} Bb4 {[%emt 0:02:50]} 10. Be3 {[%emt 0:21:20]} O-O {[%emt 0:01:32]} (10... Bxc3+ 11. bxc3 O-O 12. Qd2 $14) 11. Bc4 {[%emt 0:14:39]} a6 {[%emt 0:10:10]} 12. O-O {[%emt 0:01:09][%cal Bh1f1,Bf1f2,Bf2d2][%mdl 32]} Nbd7 {[%emt 0:04:13]} (12... Nc6 $14 {should be considered.}) 13. Rc1 {[%emt 0:04:29]} Qg6 {[%emt 0:08:52]} 14. a3 {[%emt 0:02:13]} Be7 {[%emt 0:00:15]} 15. Rf2 {[%emt 0:04:22]} h5 {[%emt 1:03:57][%cal Bh7h5,Bh5h4,Bh4h3][%mdl 32]} 16. Rd2 {[%emt 0:00:54] White has more active pieces. The black rooks are passive.} h4 {[%emt 0:00:00]} 17. Bf1 {[%emt 0:00:39]} Re8 {[%emt 0:00:00]} 18. Na5 {[%emt 0:06:05]} h3 {[%emt 0:00:00]} 19. g3 {[%emt 0:02:00][%cal Bg2g3,Bg3g4][%mdl 32]} Bc5 {[%emt 0:00:00]} 20. Qe1 {[%emt 0:00:42]} ({Worse is} 20. Nd5 Nxd5 21. Bxc5 Nxc5 22. exd5 (22. Rxd5 b6 $11) 22... Nd7 $11) 20... Qh6 {[%emt 0:00:00] [#]} 21. Nd1 {[%emt 0:00:21]} (21. Nd5 Nxd5 22. Bxc5 Nxc5 23. exd5 Nd7 $14) 21... b6 {[%emt 0:00:00] [#]} (21... Bxe3+ {keeps fighting.} 22. Nxe3 (22. Qxe3 Qh5 $18) 22... Nf8) 22. Rxc5 $1 $18 {[%emt 0:01:41][%mdl 512]} Qh5 {[%emt 0:00:00] [#]} 23. Rxc8 {[%emt 0:07:52]} Rexc8 {[%emt 0:00:00]} 24. g4 {[%emt 0:01:12]} Qg6 {[%emt 0:00:00]} (24... Nxg4 $142 25. fxg4 Qxg4+ 26. Qg3 Qxg3+ 27. hxg3 Nf6 28. Bxb6 Nxe4) 25. Nc4 {[%emt 0:02:48][%cal Ba5c4,Bc4d6,Bd6f5][%mdl 32] White is clearly winning.} b5 {[%emt 0:00:00]} 26. Nd6 {[%emt 0:00:21]} Rc6 {[%emt 0:00:00]} 27. Nf5 {[%emt 0:00:59]} Kf8 {[%emt 0:00:00] [#] Prevents Ne7.} 28. Rxd7 $1 {[%emt 0:00:25][%mdl 512]} Nxd7 {[%emt 0:00:00]} 29. Qb4+ {[%emt 0:00:05]} Nc5 {[%emt 0:00:00]} 30. Bxc5+ {[%emt 0:00:34]} Ke8 {[%emt 0:00:00]} 31. Ne7 {[%emt 0:05:00]} Qe6 {[%emt 0:00:00]} 32. Nxc6 {[%emt 0:00:07]} Qxc6 {[%emt 0:00:00]} 33. Nc3 {[%emt 0:00:25] Weighted Error Value: White=0.04 (flawless) /Black=0.41.  Mistake:       	---       	Black=3      Inaccurate:     	White=1     	Black=2      OK:         	White=12    	Black=5      Brilliant:      	White=1     	---} 1-0